[Event "*** Titled Tuesday Blitz"]
[Site "Chess.com"]
[Date "2020.01.07"]
[Round "1"]
[White "Gogolev_Artemy"]
[Black "Lukianoo"]
[Result "1-0"]
[WhiteElo "2459"]
[BlackElo "2800"]
[TimeControl "180+2"]
[EndTime "13:05:24 PST"]
[Termination "Gogolev_Artemy won by resignation"]

1. d4 {[%clk 0:02:57.6]} 1... Nf6 {[%clk 0:03:00.4]} 2. c4 {[%clk 0:02:58.6]}
2... e6 {[%clk 0:03:01.7]} 3. g3 {[%clk 0:02:58.7]} 3... Bb4+ {[%clk 0:03:02.2]}
4. Nd2 {[%clk 0:02:58.8]} 4... O-O {[%clk 0:03:01.9]} 5. Bg2 {[%clk 0:02:59.3]}
5... a5 {[%clk 0:03:02.2]} 6. Nf3 {[%clk 0:02:59.2]} 6... b6 {[%clk 0:03:03.3]}
7. Ne5 {[%clk 0:02:58.1]} 7... d5 {[%clk 0:03:03.5]} 8. O-O {[%clk 0:02:57.1]}
8... Bb7 {[%clk 0:03:04]} 9. Qc2 {[%clk 0:02:53.8]} 9... Bd6 {[%clk 0:02:56.6]}
10. b3 {[%clk 0:02:53.4]} 10... Nbd7 {[%clk 0:02:54.2]} 11. Bb2 {[%clk
0:02:54.2]} 11... c6 {[%clk 0:02:46.5]} 12. e4 {[%clk 0:02:51.3]} 12... Rc8
{[%clk 0:02:40.2]} 13. Rac1 {[%clk 0:02:51.3]} 13... c5 {[%clk 0:02:22.5]} 14.
exd5 {[%clk 0:02:47.7]} 14... exd5 {[%clk 0:02:07.2]} 15. Nxd7 {[%clk 0:02:44]}
15... Nxd7 {[%clk 0:02:05.7]} 16. cxd5 {[%clk 0:02:39.4]} 16... cxd4 {[%clk
0:02:05.8]} 17. Qd3 {[%clk 0:02:39.6]} 17... Nc5 {[%clk 0:01:54.1]} 18. Qxd4
{[%clk 0:02:36.6]} 18... f6 {[%clk 0:01:55.3]} 19. Nc4 {[%clk 0:02:34.6]} 19...
Ba6 {[%clk 0:01:54.7]} 20. Nxd6 {[%clk 0:02:09.1]} 20... Qxd6 {[%clk 0:01:56.6]}
21. Rfe1 {[%clk 0:01:59.5]} 21... Nd3 {[%clk 0:01:53.6]} 22. Rxc8 {[%clk
0:01:59.6]} 22... Rxc8 {[%clk 0:01:53.7]} 23. Re6 {[%clk 0:01:56.8]} 23... Qd7
{[%clk 0:01:50.4]} 24. Bf1 {[%clk 0:01:51.3]} 24... Nxb2 {[%clk 0:01:37.1]} 25.
Bxa6 {[%clk 0:01:52.1]} 25... Rc1+ {[%clk 0:01:38.7]} 26. Kg2 {[%clk 0:01:53.1]}
26... Rd1 {[%clk 0:01:39.7]} 27. Qe4 {[%clk 0:01:34.9]} 27... Qxd5 {[%clk
0:01:40.7]} 28. Qxd5 {[%clk 0:01:35.8]} 28... Rxd5 {[%clk 0:01:42.3]} 29. Re2
{[%clk 0:01:36.6]} 1-0

[Event "*** Titled Tuesday Blitz"]
[Site "Chess.com"]
[Date "2020.01.07"]
[Round "1"]
[White "GoldenShare"]
[Black "platy3"]
[Result "0-1"]
[WhiteElo "2473"]
[BlackElo "2893"]
[TimeControl "180+2"]
[EndTime "13:05:28 PST"]
[Termination "platy3 won by resignation"]

1. e4 {[%clk 0:02:58.9]} 1... c5 {[%clk 0:02:59.7]} 2. Nf3 {[%clk 0:02:55.8]}
2... Nc6 {[%clk 0:03:00.1]} 3. d4 {[%clk 0:02:55]} 3... cxd4 {[%clk 0:03:00.9]}
4. Nxd4 {[%clk 0:02:56.9]} 4... Nf6 {[%clk 0:03:02.2]} 5. Nc3 {[%clk 0:02:57.3]}
5... d6 {[%clk 0:03:03.6]} 6. Be3 {[%clk 0:02:56]} 6... e6 {[%clk 0:02:58.1]} 7.
f3 {[%clk 0:02:55.7]} 7... a6 {[%clk 0:02:57.6]} 8. Qd2 {[%clk 0:02:56.7]} 8...
Qc7 {[%clk 0:02:58]} 9. g4 {[%clk 0:02:54.6]} 9... b5 {[%clk 0:02:56.9]} 10.
Nxc6 {[%clk 0:02:44.5]} 10... Qxc6 {[%clk 0:02:57.2]} 11. O-O-O {[%clk
0:02:46.4]} 11... Bb7 {[%clk 0:02:54.3]} 12. g5 {[%clk 0:02:36.5]} 12... Nd7
{[%clk 0:02:54.7]} 13. Kb1 {[%clk 0:02:29.3]} 13... Ne5 {[%clk 0:02:52]} 14. f4
{[%clk 0:02:12.8]} 14... Nc4 {[%clk 0:02:50.8]} 15. Bxc4 {[%clk 0:02:14.3]}
15... Qxc4 {[%clk 0:02:52.7]} 16. Bd4 {[%clk 0:02:06.8]} 16... Rc8 {[%clk
0:02:44.6]} 17. a3 {[%clk 0:02:05.7]} 17... a5 {[%clk 0:02:41.5]} 18. Rhe1
{[%clk 0:01:59.4]} 18... h6 {[%clk 0:02:05.1]} 19. g6 {[%clk 0:01:45.3]} 19...
fxg6 {[%clk 0:01:49.2]} 20. f5 {[%clk 0:01:46.3]} 20... e5 {[%clk 0:01:45.6]}
21. Bxe5 {[%clk 0:01:46.6]} 21... b4 {[%clk 0:01:36.5]} 22. axb4 {[%clk
0:01:37.5]} 22... axb4 {[%clk 0:01:36.2]} 23. Na4 {[%clk 0:01:24.8]} 23... Qc6
{[%clk 0:01:32]} 24. Bxd6 {[%clk 0:01:16.7]} 24... Bxd6 {[%clk 0:01:32.4]} 25.
Qxd6 {[%clk 0:01:12.9]} 25... Qxc2+ {[%clk 0:01:31.5]} 26. Ka1 {[%clk
0:01:10.7]} 26... Qxa4+ {[%clk 0:01:32.9]} 27. Kb1 {[%clk 0:01:12.2]} 27... Qc2+
{[%clk 0:01:34.5]} 28. Ka1 {[%clk 0:01:13.2]} 28... Ra8+ {[%clk 0:01:36.4]} 0-1

[Event "*** Titled Tuesday Blitz"]
[Site "Chess.com"]
[Date "2020.01.07"]
[Round "1"]
[White "Glufs"]
[Black "vanea_03"]
[Result "1/2-1/2"]
[WhiteElo "2364"]
[BlackElo "2694"]
[TimeControl "180+2"]
[EndTime "13:05:29 PST"]
[Termination "Game drawn by repetition"]

1. Nf3 {[%clk 0:03:01.9]} 1... d5 {[%clk 0:02:59.9]} 2. g3 {[%clk 0:03:02.2]}
2... Bg4 {[%clk 0:03:00.5]} 3. Bg2 {[%clk 0:03:02.9]} 3... Nd7 {[%clk
0:03:01.6]} 4. d4 {[%clk 0:02:51.3]} 4... Ngf6 {[%clk 0:03:01.6]} 5. h3 {[%clk
0:02:43.2]} 5... Bh5 {[%clk 0:03:01.2]} 6. O-O {[%clk 0:02:35.4]} 6... e6 {[%clk
0:03:01.2]} 7. c4 {[%clk 0:02:30.7]} 7... Be7 {[%clk 0:03:00.7]} 8. Qb3 {[%clk
0:02:18.9]} 8... Rb8 {[%clk 0:02:48.1]} 9. Nc3 {[%clk 0:02:12.1]} 9... Nb6
{[%clk 0:02:30.6]} 10. cxd5 {[%clk 0:01:54.8]} 10... exd5 {[%clk 0:02:18.4]} 11.
Nh4 {[%clk 0:01:49.9]} 11... O-O {[%clk 0:02:09.9]} 12. Nf5 {[%clk 0:01:44.5]}
12... Bg6 {[%clk 0:02:05.3]} 13. Nxe7+ {[%clk 0:01:43.8]} 13... Qxe7 {[%clk
0:02:07.2]} 14. Bg5 {[%clk 0:01:42.4]} 14... c6 {[%clk 0:02:05.3]} 15. Rfe1
{[%clk 0:01:37.5]} 15... h6 {[%clk 0:02:01.2]} 16. Bf4 {[%clk 0:01:38.3]} 16...
Rbe8 {[%clk 0:01:57.1]} 17. a4 {[%clk 0:01:37.8]} 17... Nc8 {[%clk 0:01:42]} 18.
a5 {[%clk 0:01:35.9]} 18... a6 {[%clk 0:01:37.7]} 19. Qa3 {[%clk 0:01:31.2]}
19... Qd8 {[%clk 0:01:25.3]} 20. Be5 {[%clk 0:01:28]} 20... Nd7 {[%clk
0:01:21.9]} 21. Bf4 {[%clk 0:01:21]} 21... Nf6 {[%clk 0:01:23.3]} 22. Be5 {[%clk
0:01:21.4]} 22... Nd7 {[%clk 0:01:19.6]} 23. Bf4 {[%clk 0:01:21.9]} 23... Nf6
{[%clk 0:01:02.8]} 1/2-1/2

[Event "*** Titled Tuesday Blitz"]
[Site "Chess.com"]
[Date "2020.01.07"]
[Round "1"]
[White "Rikikits"]
[Black "coolthing"]
[Result "1-0"]
[WhiteElo "2710"]
[BlackElo "2355"]
[TimeControl "180+2"]
[EndTime "13:05:32 PST"]
[Termination "Rikikits won by resignation"]

1. b3 {[%clk 0:03:01.7]} 1... Nf6 {[%clk 0:02:59.1]} 2. Bb2 {[%clk 0:03:03.6]}
2... e6 {[%clk 0:02:59.2]} 3. e3 {[%clk 0:03:05.2]} 3... d5 {[%clk 0:03:00.1]}
4. f4 {[%clk 0:03:06.8]} 4... Be7 {[%clk 0:03:01]} 5. Nf3 {[%clk 0:03:08.7]}
5... c5 {[%clk 0:03:02.1]} 6. Bd3 {[%clk 0:03:10.2]} 6... Nc6 {[%clk 0:03:02.8]}
7. O-O {[%clk 0:03:11.9]} 7... O-O {[%clk 0:03:03.3]} 8. Nc3 {[%clk 0:03:12]}
8... b6 {[%clk 0:02:58]} 9. Ne2 {[%clk 0:03:12.1]} 9... Bb7 {[%clk 0:02:58.7]}
10. Ng3 {[%clk 0:03:13.1]} 10... Nb4 {[%clk 0:02:57.7]} 11. Ne5 {[%clk
0:03:13.2]} 11... Nxd3 {[%clk 0:02:58.2]} 12. cxd3 {[%clk 0:03:14.5]} 12... d4
{[%clk 0:02:50.8]} 13. Qe2 {[%clk 0:03:13.3]} 13... Rc8 {[%clk 0:02:39]} 14. e4
{[%clk 0:03:11.2]} 14... Bd6 {[%clk 0:02:38.1]} 15. Nc4 {[%clk 0:03:08.7]} 15...
Bb8 {[%clk 0:02:33.4]} 16. a4 {[%clk 0:03:07.8]} 16... Qe7 {[%clk 0:02:24.8]}
17. Rae1 {[%clk 0:03:06.1]} 17... Rfd8 {[%clk 0:02:12.5]} 18. b4 {[%clk
0:03:02.3]} 18... cxb4 {[%clk 0:02:06.1]} 19. e5 {[%clk 0:03:03.3]} 19... Nd5
{[%clk 0:02:03.5]} 20. f5 {[%clk 0:03:03.4]} 20... b3 {[%clk 0:01:42.3]} 21.
Bxd4 {[%clk 0:02:58.4]} 21... Nb4 {[%clk 0:01:39.3]} 22. f6 {[%clk 0:02:58.7]}
22... Qf8 {[%clk 0:01:31.8]} 23. fxg7 {[%clk 0:02:58.9]} 23... Qe7 {[%clk
0:01:28.6]} 24. Nd6 {[%clk 0:02:37.8]} 24... Bxd6 {[%clk 0:01:20.8]} 25. exd6
{[%clk 0:02:39.7]} 25... Rxd6 {[%clk 0:01:21.3]} 26. Bf6 {[%clk 0:02:38.8]}
26... Qd7 {[%clk 0:01:21.3]} 27. Qh5 {[%clk 0:02:24.1]} 27... Rc5 {[%clk
0:01:12.9]} 28. Qh6 {[%clk 0:02:02.6]} 28... Rxd3 {[%clk 0:01:07.2]} 29. Ne4
{[%clk 0:01:56]} 29... Bxe4 {[%clk 0:00:59.4]} 30. Rxe4 {[%clk 0:01:57.9]} 30...
Rxd2 {[%clk 0:00:54.4]} 31. Qxh7+ {[%clk 0:01:52.4]} 1-0

[Event "*** Titled Tuesday Blitz"]
[Site "Chess.com"]
[Date "2020.01.07"]
[Round "1"]
[White "TigrVShlyape"]
[Black "otrov-11"]
[Result "1-0"]
[WhiteElo "2816"]
[BlackElo "2429"]
[TimeControl "180+2"]
[EndTime "13:05:33 PST"]
[Termination "TigrVShlyape won by resignation"]

1. d4 {[%clk 0:03:00]} 1... Nf6 {[%clk 0:03:00]} 2. Nf3 {[%clk 0:03:00.7]} 2...
d5 {[%clk 0:02:59.9]} 3. Bf4 {[%clk 0:03:01.5]} 3... c5 {[%clk 0:03:00.9]} 4. e3
{[%clk 0:03:02.6]} 4... Nc6 {[%clk 0:03:01.7]} 5. Nbd2 {[%clk 0:03:03.8]} 5...
Qb6 {[%clk 0:02:52.1]} 6. dxc5 {[%clk 0:03:03.7]} 6... Qxc5 {[%clk 0:02:52.6]}
7. a3 {[%clk 0:03:01.6]} 7... Qb6 {[%clk 0:02:48]} 8. b4 {[%clk 0:03:01.9]} 8...
Bg4 {[%clk 0:02:43.5]} 9. c4 {[%clk 0:02:58.5]} 9... e5 {[%clk 0:02:22.9]} 10.
Bg5 {[%clk 0:02:59.3]} 10... e4 {[%clk 0:02:23.3]} 11. h3 {[%clk 0:02:59.8]}
11... Bh5 {[%clk 0:02:17.8]} 12. g4 {[%clk 0:02:59.7]} 12... Nxg4 {[%clk
0:02:18.1]} 13. hxg4 {[%clk 0:02:58.3]} 13... Bxg4 {[%clk 0:02:20]} 14. cxd5
{[%clk 0:02:58.5]} 14... Ne5 {[%clk 0:02:18.3]} 15. Nxe5 {[%clk 0:02:46.6]}
15... Bxd1 {[%clk 0:02:17]} 16. Rxd1 {[%clk 0:02:40.7]} 16... f6 {[%clk
0:02:04]} 17. Nec4 {[%clk 0:02:40.5]} 17... Qd8 {[%clk 0:02:04.6]} 18. Bf4
{[%clk 0:02:39.1]} 18... Qxd5 {[%clk 0:02:05.4]} 19. Nb3 {[%clk 0:02:26.3]}
19... Qe6 {[%clk 0:02:02]} 20. Nd4 {[%clk 0:02:26.5]} 20... Qd5 {[%clk
0:01:39.1]} 21. Nb5 {[%clk 0:02:19.9]} 21... Qc6 {[%clk 0:01:20.4]} 22. Nc7+
{[%clk 0:02:16]} 22... Kf7 {[%clk 0:01:21.5]} 23. b5 {[%clk 0:01:56]} 23... Qc5
{[%clk 0:01:10.1]} 24. Rd7+ {[%clk 0:01:55.6]} 24... Kg6 {[%clk 0:01:06.2]} 25.
Rg1+ {[%clk 0:01:54.3]} 1-0

[Event "*** Titled Tuesday Blitz"]
[Site "Chess.com"]
[Date "2020.01.07"]
[Round "1"]
[White "adriangschnitzer"]
[Black "brendan174"]
[Result "1-0"]
[WhiteElo "2546"]
[BlackElo "2108"]
[TimeControl "180+2"]
[EndTime "13:05:45 PST"]
[Termination "adriangschnitzer won by resignation"]

1. c4 {[%clk 0:02:55.9]} 1... Nf6 {[%clk 0:03:00]} 2. Nc3 {[%clk 0:02:56.4]}
2... e6 {[%clk 0:03:00.3]} 3. e4 {[%clk 0:02:57.3]} 3... d5 {[%clk 0:02:58.2]}
4. e5 {[%clk 0:02:57]} 4... d4 {[%clk 0:02:59.4]} 5. exf6 {[%clk 0:02:56]} 5...
dxc3 {[%clk 0:03:00.2]} 6. bxc3 {[%clk 0:02:57.9]} 6... Qxf6 {[%clk 0:03:00.9]}
7. d4 {[%clk 0:02:59]} 7... c5 {[%clk 0:02:58.2]} 8. Nf3 {[%clk 0:02:57.4]} 8...
cxd4 {[%clk 0:02:47.5]} 9. Bg5 {[%clk 0:02:57.2]} 9... Qg6 {[%clk 0:02:45.2]}
10. Bd3 {[%clk 0:02:57.8]} 10... Qh5 {[%clk 0:02:38]} 11. cxd4 {[%clk
0:02:57.5]} 11... Bb4+ {[%clk 0:02:34.5]} 12. Bd2 {[%clk 0:02:57.1]} 12... Bxd2+
{[%clk 0:02:33.2]} 13. Qxd2 {[%clk 0:02:59]} 13... O-O {[%clk 0:02:31.5]} 14.
O-O {[%clk 0:02:59.9]} 14... Nc6 {[%clk 0:02:30.5]} 15. h3 {[%clk 0:02:53.9]}
15... b6 {[%clk 0:01:52.8]} 16. Rfe1 {[%clk 0:02:40.6]} 16... Bb7 {[%clk
0:01:51.7]} 17. Kh2 {[%clk 0:02:41.1]} 17... Rfd8 {[%clk 0:01:44.7]} 18. g4
{[%clk 0:02:20.1]} 18... Qa5 {[%clk 0:01:43]} 19. Qf4 {[%clk 0:02:19.8]} 19...
Qc3 {[%clk 0:01:37.2]} 20. Rad1 {[%clk 0:02:19.8]} 20... Nb4 {[%clk 0:01:14.9]}
21. Bxh7+ {[%clk 0:02:17.7]} 21... Kxh7 {[%clk 0:00:45.2]} 22. Ng5+ {[%clk
0:02:17.4]} 22... Kh8 {[%clk 0:00:35.8]} 23. Qxf7 {[%clk 0:02:06.8]} 23... Rxd4
{[%clk 0:00:07.6]} 24. Rxe6 {[%clk 0:02:01.1]} 1-0

[Event "*** Titled Tuesday Blitz"]
[Site "Chess.com"]
[Date "2020.01.07"]
[Round "1"]
[White "FredyMatsuura"]
[Black "riconaipe"]
[Result "0-1"]
[WhiteElo "2221"]
[BlackElo "2585"]
[TimeControl "180+2"]
[EndTime "13:05:59 PST"]
[Termination "riconaipe won by resignation"]

1. d4 {[%clk 0:03:01.1]} 1... Nf6 {[%clk 0:02:56.9]} 2. c4 {[%clk 0:03:01.6]}
2... e6 {[%clk 0:02:58.1]} 3. Nf3 {[%clk 0:03:02.6]} 3... d5 {[%clk 0:02:59.2]}
4. Nc3 {[%clk 0:03:03]} 4... Be7 {[%clk 0:02:49.3]} 5. Bg5 {[%clk 0:03:02.7]}
5... O-O {[%clk 0:02:50.4]} 6. Qc2 {[%clk 0:03:03.5]} 6... b6 {[%clk 0:02:50.3]}
7. e3 {[%clk 0:02:57.1]} 7... Bb7 {[%clk 0:02:50.3]} 8. Rc1 {[%clk 0:02:55.5]}
8... Nbd7 {[%clk 0:02:48.6]} 9. cxd5 {[%clk 0:02:51.9]} 9... exd5 {[%clk
0:02:50.5]} 10. Bd3 {[%clk 0:02:48.9]} 10... c5 {[%clk 0:02:50]} 11. O-O {[%clk
0:02:46.5]} 11... c4 {[%clk 0:02:50]} 12. Bf5 {[%clk 0:02:34.4]} 12... g6 {[%clk
0:02:50.4]} 13. Bh3 {[%clk 0:02:30.3]} 13... a6 {[%clk 0:02:42.2]} 14. Ne5
{[%clk 0:02:29]} 14... b5 {[%clk 0:02:35]} 15. a3 {[%clk 0:02:24.5]} 15... Nxe5
{[%clk 0:02:27]} 16. dxe5 {[%clk 0:02:24.8]} 16... Ne4 {[%clk 0:02:28.6]} 17.
Nxe4 {[%clk 0:02:19.6]} 17... Bxg5 {[%clk 0:02:15]} 18. Nxg5 {[%clk 0:01:59.5]}
18... Qxg5 {[%clk 0:02:16.9]} 19. f4 {[%clk 0:01:59.8]} 19... Qe7 {[%clk
0:02:15.6]} 20. Rce1 {[%clk 0:01:51.4]} 20... Rad8 {[%clk 0:02:07.5]} 21. Qc3
{[%clk 0:01:51]} 21... Qc5 {[%clk 0:02:04.5]} 22. f5 {[%clk 0:01:41.3]} 22... d4
{[%clk 0:02:03.9]} 23. exd4 {[%clk 0:01:41.7]} 23... Rxd4 {[%clk 0:02:02.9]} 24.
Kh1 {[%clk 0:01:41.5]} 24... Rd3 {[%clk 0:02:00.9]} 25. Qc1 {[%clk 0:01:33]}
25... Rxh3 {[%clk 0:01:54.9]} 26. Qg5 {[%clk 0:01:19.5]} 26... Rh5 {[%clk
0:01:42]} 27. Qg4 {[%clk 0:01:18.1]} 27... Qd5 {[%clk 0:01:24.9]} 28. e6 {[%clk
0:01:12.4]} 28... Rxf5 {[%clk 0:01:21.2]} 0-1

[Event "*** Titled Tuesday Blitz"]
[Site "Chess.com"]
[Date "2020.01.07"]
[Round "1"]
[White "manmanlai1"]
[Black "SantoBlue"]
[Result "0-1"]
[WhiteElo "2377"]
[BlackElo "2741"]
[TimeControl "180+2"]
[EndTime "13:06:04 PST"]
[Termination "SantoBlue won by resignation"]

1. e4 {[%clk 0:02:59.1]} 1... e5 {[%clk 0:02:50.4]} 2. Nf3 {[%clk 0:03:00]} 2...
Nc6 {[%clk 0:02:50.8]} 3. Bc4 {[%clk 0:03:00.7]} 3... Bc5 {[%clk 0:02:50.9]} 4.
O-O {[%clk 0:03:00.4]} 4... Nf6 {[%clk 0:02:51.8]} 5. d3 {[%clk 0:03:01.8]} 5...
O-O {[%clk 0:02:52.7]} 6. Bg5 {[%clk 0:02:59.8]} 6... h6 {[%clk 0:02:52.2]} 7.
Bh4 {[%clk 0:03:00.9]} 7... Be7 {[%clk 0:02:53.2]} 8. Bg3 {[%clk 0:03:00.8]}
8... d6 {[%clk 0:02:54.3]} 9. a4 {[%clk 0:03:01.9]} 9... Nh5 {[%clk 0:02:52.8]}
10. Nxe5 {[%clk 0:02:53.2]} 10... Nxg3 {[%clk 0:02:49.6]} 11. Nxc6 {[%clk
0:02:53.9]} 11... bxc6 {[%clk 0:02:50.9]} 12. hxg3 {[%clk 0:02:48]} 12... Rb8
{[%clk 0:02:52.2]} 13. Bb3 {[%clk 0:02:38.7]} 13... Bf6 {[%clk 0:02:40]} 14. c3
{[%clk 0:02:34.9]} 14... Ba6 {[%clk 0:02:41]} 15. Ra3 {[%clk 0:02:27.1]} 15...
d5 {[%clk 0:02:39.7]} 16. exd5 {[%clk 0:02:17.9]} 16... cxd5 {[%clk 0:02:40.4]}
17. Re1 {[%clk 0:02:16.7]} 17... c5 {[%clk 0:02:35]} 18. Nd2 {[%clk 0:01:37.4]}
18... Bxd3 {[%clk 0:02:28.4]} 19. Bc2 {[%clk 0:01:38.2]} 19... Ba6 {[%clk
0:02:21.7]} 20. Qc1 {[%clk 0:01:37.8]} 20... Re8 {[%clk 0:02:16.2]} 21. Rxe8+
{[%clk 0:01:37.7]} 21... Qxe8 {[%clk 0:02:17.7]} 22. Ra1 {[%clk 0:01:37.6]}
22... d4 {[%clk 0:02:10.4]} 23. Ne4 {[%clk 0:01:32.7]} 23... d3 {[%clk
0:02:11.1]} 24. Nxf6+ {[%clk 0:01:32.9]} 24... gxf6 {[%clk 0:02:12.2]} 25. Bxd3
{[%clk 0:01:23.2]} 25... Bxd3 {[%clk 0:02:12.5]} 26. Qxh6 {[%clk 0:01:24.6]}
26... Bg6 {[%clk 0:02:09.7]} 27. Qd2 {[%clk 0:01:19]} 27... c4 {[%clk
0:02:08.3]} 28. a5 {[%clk 0:01:11.3]} 28... Qb5 {[%clk 0:02:08.3]} 29. Qd4
{[%clk 0:01:02.5]} 29... Kg7 {[%clk 0:02:09.2]} 30. Re1 {[%clk 0:00:50]} 30...
Qxb2 {[%clk 0:01:57.2]} 31. Qxc4 {[%clk 0:00:47.7]} 31... Qd2 {[%clk 0:01:54.9]}
32. Re3 {[%clk 0:00:44]} 32... Qc1+ {[%clk 0:01:46.5]} 0-1

[Event "*** Titled Tuesday Blitz"]
[Site "Chess.com"]
[Date "2020.01.07"]
[Round "1"]
[White "tomozupan"]
[Black "IMRosen"]
[Result "0-1"]
[WhiteElo "2188"]
[BlackElo "2569"]
[TimeControl "180+2"]
[EndTime "13:06:08 PST"]
[Termination "IMRosen won by checkmate"]

1. d4 {[%clk 0:03:00.1]} 1... d5 {[%clk 0:02:55.8]} 2. c4 {[%clk 0:03:00.2]}
2... e6 {[%clk 0:02:48.9]} 3. Nc3 {[%clk 0:03:00.4]} 3... Nf6 {[%clk 0:02:49.1]}
4. Bg5 {[%clk 0:03:00.8]} 4... Be7 {[%clk 0:02:49.3]} 5. cxd5 {[%clk 0:03:01.7]}
5... exd5 {[%clk 0:02:50.2]} 6. e3 {[%clk 0:03:02.5]} 6... O-O {[%clk
0:02:43.2]} 7. Bd3 {[%clk 0:03:03]} 7... Nbd7 {[%clk 0:02:42.7]} 8. Qc2 {[%clk
0:03:03.2]} 8... Re8 {[%clk 0:02:38.5]} 9. Nf3 {[%clk 0:03:03]} 9... Nf8 {[%clk
0:02:35.9]} 10. O-O {[%clk 0:03:02.9]} 10... c6 {[%clk 0:02:36.5]} 11. Rab1
{[%clk 0:03:02.5]} 11... Ng6 {[%clk 0:02:36.8]} 12. b4 {[%clk 0:03:01.7]} 12...
a6 {[%clk 0:02:37.2]} 13. a4 {[%clk 0:03:01.9]} 13... Bd6 {[%clk 0:02:36.5]} 14.
b5 {[%clk 0:02:57.4]} 14... axb5 {[%clk 0:02:36]} 15. axb5 {[%clk 0:02:57.7]}
15... h6 {[%clk 0:02:35.4]} 16. Bxf6 {[%clk 0:02:53.6]} 16... Qxf6 {[%clk
0:02:28.9]} 17. bxc6 {[%clk 0:02:48.1]} 17... bxc6 {[%clk 0:02:28.4]} 18. Rfc1
{[%clk 0:02:20.7]} 18... Bg4 {[%clk 0:02:26.6]} 19. Nd2 {[%clk 0:02:06.8]} 19...
Nh4 {[%clk 0:02:07.1]} 20. Nf1 {[%clk 0:01:59.7]} 20... Bh3 {[%clk 0:01:44.8]}
21. f4 {[%clk 0:01:40]} 21... Bxg2 {[%clk 0:01:25.1]} 22. Nd1 {[%clk 0:01:27]}
22... Ba3 {[%clk 0:01:02.1]} 23. Qxc6 {[%clk 0:01:20.1]} 23... Bxc1 {[%clk
0:00:58.5]} 24. Qxf6 {[%clk 0:01:18.7]} 24... gxf6 {[%clk 0:00:58.8]} 25. Rxc1
{[%clk 0:01:19.2]} 25... Ra2 {[%clk 0:00:50.4]} 26. Ng3 {[%clk 0:01:12.7]} 26...
Nf3# {[%clk 0:00:40.6]} 0-1

[Event "*** Titled Tuesday Blitz"]
[Site "Chess.com"]
[Date "2020.01.07"]
[Round "1"]
[White "Konavets"]
[Black "Naruto-K"]
[Result "1-0"]
[WhiteElo "2965"]
[BlackElo "2503"]
[TimeControl "180+2"]
[EndTime "13:06:27 PST"]
[Termination "Konavets won by resignation"]

1. d4 {[%clk 0:03:01.9]} 1... Nf6 {[%clk 0:03:00.5]} 2. c4 {[%clk 0:02:56.7]}
2... c5 {[%clk 0:03:00.6]} 3. d5 {[%clk 0:02:57.7]} 3... g6 {[%clk 0:03:01.9]}
4. Nc3 {[%clk 0:02:59.1]} 4... Bg7 {[%clk 0:03:02.7]} 5. e4 {[%clk 0:03:00.7]}
5... d6 {[%clk 0:03:04.2]} 6. f4 {[%clk 0:03:02.3]} 6... O-O {[%clk 0:03:02.7]}
7. Be2 {[%clk 0:03:03.8]} 7... e6 {[%clk 0:02:57.9]} 8. dxe6 {[%clk 0:03:05.7]}
8... fxe6 {[%clk 0:02:54.9]} 9. Nf3 {[%clk 0:03:07.6]} 9... Nc6 {[%clk
0:02:55.9]} 10. O-O {[%clk 0:03:08.2]} 10... e5 {[%clk 0:02:56.2]} 11. fxe5
{[%clk 0:03:08.8]} 11... dxe5 {[%clk 0:02:57.6]} 12. Nd5 {[%clk 0:03:10]} 12...
Nd4 {[%clk 0:02:46.5]} 13. Bg5 {[%clk 0:03:07.6]} 13... Qd6 {[%clk 0:02:32.7]}
14. Bxf6 {[%clk 0:03:07.4]} 14... Bxf6 {[%clk 0:02:33.5]} 15. Nxd4 {[%clk
0:03:01.8]} 15... exd4 {[%clk 0:02:25.7]} 16. Bg4 {[%clk 0:03:02.2]} 16... Be5
{[%clk 0:02:24.6]} 17. Rxf8+ {[%clk 0:03:01.6]} 17... Kxf8 {[%clk 0:02:23.9]}
18. Qf3+ {[%clk 0:02:36.8]} 18... Kg7 {[%clk 0:02:22.3]} 19. Bxc8 {[%clk
0:02:37.9]} 19... Rxc8 {[%clk 0:02:21.7]} 20. Rf1 {[%clk 0:02:39.5]} 20... Qe6
{[%clk 0:01:36.7]} 21. b3 {[%clk 0:02:37.4]} 21... a6 {[%clk 0:00:39.6]} 22. a4
{[%clk 0:02:17.7]} 22... b6 {[%clk 0:00:38.1]} 23. g3 {[%clk 0:02:02.8]} 23...
Rb8 {[%clk 0:00:33.5]} 24. Nf4 {[%clk 0:01:40.2]} 24... Bxf4 {[%clk 0:00:20.7]}
25. gxf4 {[%clk 0:01:42.1]} 25... b5 {[%clk 0:00:20.8]} 26. f5 {[%clk
0:01:43.4]} 26... Qf6 {[%clk 0:00:17.9]} 27. Qg3 {[%clk 0:01:44.7]} 27... Rb7
{[%clk 0:00:16.5]} 28. e5 {[%clk 0:01:44.9]} 28... Qc6 {[%clk 0:00:13.3]} 29. e6
{[%clk 0:01:45.6]} 29... Qe4 {[%clk 0:00:12.6]} 30. f6+ {[%clk 0:01:46.3]} 30...
Kg8 {[%clk 0:00:14]} 31. f7+ {[%clk 0:01:47.2]} 31... Kf8 {[%clk 0:00:15.2]} 32.
Qd6+ {[%clk 0:01:48.4]} 1-0

[Event "*** Titled Tuesday Blitz"]
[Site "Chess.com"]
[Date "2020.01.07"]
[Round "1"]
[White "gena217"]
[Black "PotapovaM"]
[Result "1-0"]
[WhiteElo "2942"]
[BlackElo "2499"]
[TimeControl "180+2"]
[EndTime "13:06:27 PST"]
[Termination "gena217 won by resignation"]

1. e4 {[%clk 0:02:58.2]} 1... c5 {[%clk 0:02:58.1]} 2. Nf3 {[%clk 0:02:59.4]}
2... d6 {[%clk 0:02:59.8]} 3. Bb5+ {[%clk 0:03:00.6]} 3... Bd7 {[%clk
0:03:00.2]} 4. c4 {[%clk 0:03:01.4]} 4... Nc6 {[%clk 0:02:59.7]} 5. O-O {[%clk
0:03:01.5]} 5... Nf6 {[%clk 0:03:01]} 6. Nc3 {[%clk 0:03:01.8]} 6... g6 {[%clk
0:03:02]} 7. d4 {[%clk 0:03:02.6]} 7... cxd4 {[%clk 0:03:02.1]} 8. Nxd4 {[%clk
0:03:04.5]} 8... Nxd4 {[%clk 0:03:02.8]} 9. Qxd4 {[%clk 0:03:05]} 9... Bg7
{[%clk 0:03:04.1]} 10. e5 {[%clk 0:02:24.9]} 10... dxe5 {[%clk 0:03:04]} 11.
Qxe5 {[%clk 0:02:26.7]} 11... O-O {[%clk 0:03:05]} 12. Rd1 {[%clk 0:02:26.2]}
12... Rc8 {[%clk 0:02:15.7]} 13. Bxd7 {[%clk 0:02:13.6]} 13... Nxd7 {[%clk
0:02:13.3]} 14. Qb5 {[%clk 0:02:15.1]} 14... Rc7 {[%clk 0:01:28.6]} 15. Bf4
{[%clk 0:02:15.3]} 15... e5 {[%clk 0:01:21]} 16. Be3 {[%clk 0:02:16.1]} 16... a6
{[%clk 0:01:01.4]} 17. Qb3 {[%clk 0:01:55.3]} 17... Qe8 {[%clk 0:00:42.6]} 18.
Nd5 {[%clk 0:01:46.8]} 18... Rc8 {[%clk 0:00:42.4]} 19. Qxb7 {[%clk 0:01:46.5]}
19... Rb8 {[%clk 0:00:29.8]} 20. Qxa6 {[%clk 0:01:39.5]} 20... Rxb2 {[%clk
0:00:23.9]} 21. Qd6 {[%clk 0:01:38.7]} 21... Nb8 {[%clk 0:00:18.3]} 22. c5
{[%clk 0:01:36.5]} 22... e4 {[%clk 0:00:15.1]} 23. Nf6+ {[%clk 0:01:34.7]} 23...
Bxf6 {[%clk 0:00:15]} 24. Qxf6 {[%clk 0:01:36.6]} 24... Rc2 {[%clk 0:00:03]} 25.
Bh6 {[%clk 0:01:35.9]} 1-0